fUSD/lending_fUSD_20251001
["ID","MTS","AMOUNT","RATE_DAILY","PERIOD"]
[388781292,1759359032033,-1000.0,0.00016893,2]
[388781294,1759359032042,-170.73923249,0.000169,2]
[388781296,1759359032051,-901.0803524,0.000169,2]
[388781298,1759359032060,-155.3264501,0.000169,2]
[388781300,1759359032069,-191.51334908,0.000169,2]
[388781302,1759359032078,-4663.80961746,0.000169,2]
[388781304,1759359032088,-9552.16786547,0.0001692,2]
[388781306,1759359032097,-180.0,0.00016935,2]
[388781308,1759359032107,-180.0,0.00016939,2]
[388781310,1759359032116,-1497.27883,0.0001695,2]
[388781313,1759359032124,-6534.85856785,0.00016953,2]
[388781317,1759359032139,-4197.05433645,0.00016953,2]
[388781326,1759359032187,-438.39910005,0.00016953,2]
[388781503,1759359039643,-1000.0,0.00016953,2]
[388781512,1759359039686,-4012.18462795,0.00016953,2]
[388781515,1759359039696,-895.637,0.00016972,2]
[388781517,1759359039705,-174.657,0.00016972,2]
[388781519,1759359039715,-388.63558128,0.00016973,2]
[388781521,1759359039724,-500.0,0.00016973,2]
[388781523,1759359039734,-500.0,0.00016973,2]
[388781525,1759359039743,-500.0,0.00016973,2]
[388781527,1759359039751,-503.52505579,0.00016973,2]
[388781529,1759359039761,-500.0,0.00016973,2]
[388781531,1759359039770,-500.0,0.00016973,2]
[388781533,1759359039780,-500.0,0.00016973,2]
[388781535,1759359039789,-500.0,0.00016973,2]
[388781537,1759359039798,-500.0,0.00016973,2]
[388781539,1759359039808,-500.0,0.00016973,2]
[388781541,1759359039817,-500.0,0.00016973,2]
[388781543,1759359039827,-500.0,0.00016973,2]
[388781545,1759359039836,-500.0,0.00016973,2]
[388781547,1759359039846,-500.0,0.00016973,2]
[388781550,1759359039855,-500.0,0.00016973,2]
[388781552,1759359039865,-9905.5980765,0.00016975,2]
[388781554,1759359039877,-829.43939361,0.00016985,2]
[388781556,1759359039886,-150.0,0.00016986,2]
[388781558,1759359039896,-150.0,0.00016986,2]
[388781560,1759359039905,-294.02329061,0.00016986,2]
[388781562,1759359039914,-150.0,0.00016986,2]
[388781564,1759359039923,-150.24,0.0001699,2]
[388781566,1759359039933,-150.24,0.0001699,2]
[388781568,1759359039942,-150.24,0.0001699,2]
[388781570,1759359039951,-150.24,0.0001699,2]
[388781572,1759359039960,-150.0,0.0001699,2]
[388781573,1759359039969,-150.0,0.0001699,2]
[388781575,1759359039979,-150.0,0.0001699,2]
[388781578,1759359039997,-500.0,0.0001699,2]
[388781579,1759359040007,-150.0,0.0001699,2]
[388781582,1759359040023,-150.0,0.0001699,2]
[388781584,1759359040035,-150.0,0.0001699,2]
[388781586,1759359040045,-150.0,0.0001699,2]
[388781587,1759359040055,-150.0,0.0001699,2]
[388781590,1759359040065,-150.0,0.0001699,2]
[388781591,1759359040074,-500.0,0.0001699,2]
[388781594,1759359040086,-500.0,0.0001699,2]
[388781596,1759359040095,-500.0,0.0001699,2]
[388781597,1759359040105,-150.0,0.0001699,2]
[388781600,1759359040116,-150.0,0.0001699,2]
[388781601,1759359040126,-150.0,0.0001699,2]
[388781603,1759359040135,-200.61963341,0.0001699,2]
[388781606,1759359040145,-150.0,0.0001699,2]
[388781608,1759359040155,-150.0,0.0001699,2]
[388781610,1759359040165,-200.0,0.0001699,2]
[388781612,1759359040174,-500.0,0.0001699,2]
[388781614,1759359040184,-150.0,0.0001699,2]
[388781616,1759359040193,-500.0,0.0001699,2]
[388781618,1759359040204,-500.0,0.0001699,2]
[388781620,1759359040213,-150.0,0.0001699,2]
[388781622,1759359040223,-500.0,0.0001699,2]
[388781624,1759359040232,-205.46378157,0.0001699,2]
[388781626,1759359040241,-268.75189934,0.0001699,2]
[388781628,1759359040250,-150.0,0.0001699,2]
[388781630,1759359040259,-150.0,0.0001699,2]
[388781632,1759359040269,-150.0,0.0001699,2]
[388781634,1759359040278,-150.0,0.0001699,2]
[388781636,1759359040287,-150.0,0.0001699,2]
[388781638,1759359040297,-150.0,0.0001699,2]
[388781640,1759359040306,-500.0,0.0001699,2]
[388781642,1759359040315,-150.0,0.0001699,2]
[388781644,1759359040324,-151.0,0.00016997,2]
[388781646,1759359040333,-151.0,0.00016997,2]
[388781648,1759359040343,-151.0,0.00016997,2]
[388781650,1759359040352,-151.0,0.00016997,2]
[388781652,1759359040362,-151.0,0.00016997,2]
[388781654,1759359040372,-500.0,0.00016999,2]
[388781656,1759359040381,-500.0,0.00016999,2]
[388781658,1759359040391,-500.0,0.00016999,2]
[388781660,1759359040400,-500.0,0.00016999,2]
[388781662,1759359040409,-500.0,0.00016999,2]
[388781664,1759359040420,-500.0,0.00016999,2]
[388781666,1759359040432,-500.0,0.00016999,2]
[388781668,1759359040441,-500.0,0.00016999,2]
[388781670,1759359040450,-500.0,0.00016999,2]
[388781672,1759359040460,-500.0,0.00016999,2]
[388781674,1759359040470,-632.55826255,0.00016999,2]
[388781676,1759359040479,-500.0,0.00016999,2]
[388781678,1759359040489,-500.0,0.00016999,2]
[388781680,1759359040498,-198.86216029,0.00016999,2]
[388781681,1759359040523,-301.13783971,0.00016999,2]
[388781682,1759359040532,-33.56451577,0.00016999,2]
[388781683,1759359040544,-329.59200011,0.00016999,2]
[388781684,1759359040602,-136.84348412,0.00016999,2]
[388781685,1759359040612,-165.15651588,0.00016999,2]
[388781686,1759359040789,-3.29168148,0.00016999,2]
[388781693,1759359042935,-331.55180264,0.00016999,2]
[388781694,1759359042947,-361.31984581,0.00016999,2]
[388781695,1759359042959,-1148.0,0.00017,2]
[388781696,1759359042970,-491.68886905,0.00017,2]
[388781697,1759359043002,-190205.29745572,0.00017,2]
[388781698,1759359043016,-906.20987555,0.00017,2]
[388781699,1759359043037,-6038.91289905,0.00017,2]
[388781705,1759359046026,-1323.49264047,0.00017,2]
[388781706,1759359046042,-2891.4999995,0.00017,2]
[388781707,1759359046054,-2210.22213272,0.00017,2]
[388781708,1759359046089,-662.92192324,0.00017,2]
[388781710,1759359047932,2751.0,0.00016485,2]
[388781712,1759359106425,249.96,0.00016097,2]
[388781713,1759359117199,2665.68,0.0003,120]
[388781714,1759359137568,312.71,0.00016064,2]
[388781715,1759359204713,150.0,7.8e-05,2]
[388781716,1759359205054,150.0,8.98e-05,2]
[388781717,1759359205479,150.0,0.0001017,2]
[388781718,1759359205862,150.0,0.0001135,2]
[388781719,1759359206246,150.0,0.0001253,2]
[388781720,1759359206623,239.0,0.0001372,2]
[388781721,1759359207058,234.0,0.000149,2]
[388781722,1759359207498,229.0,0.0001609,2]
[388781723,1759359225954,250.0,0.00016054,2]
[388781724,1759359329394,-268.40510397,0.00016688,2]
[388781725,1759359333764,-153.79786423,0.00016688,2]
[388781727,1759359379931,158.86,0.00030137,120]
[388781728,1759359396012,168.72,0.00016512,2]
[388781729,1759359454817,-772.0,0.00017,9]
[388781730,1759359474777,188.5,0.00016015,2]
[388781731,1759359476722,-970.78,0.00017,7]
[388781732,1759359479573,873.7,0.00017,7]
[388781733,1759359486968,-3005.547921,0.00016647,2]
[388781734,1759359486994,-2000.0,0.00016722,2]
[388781735,1759359487019,-150.0,0.00016722,2]
[388781736,1759359487046,-1897.41428294,0.00016785,2]
[388781737,1759359487073,-1425.0,0.00016798,2]
[388781738,1759359487098,-250.0,0.00016815,2]
[388781739,1759359487123,-195.03894,0.0001683,2]
[388781740,1759359487148,-274.14466469,0.00016836,2]
[388781741,1759359487173,-300.0,0.00016858,2]
[388781742,1759359487197,-200.0,0.00016864,2]
[388781743,1759359487223,-155.59229768,0.000169,2]
[388781744,1759359487249,-1425.0,0.00016902,2]
[388781745,1759359487276,-1200.0,0.00016942,2]
[388781746,1759359487302,-1200.0,0.00016942,2]
[388781747,1759359487327,-500.0,0.00016973,2]
[388781748,1759359487352,-400.0,0.00016973,2]
[388781749,1759359487375,-500.0,0.00016973,2]
[388781750,1759359487399,-500.0,0.00016973,2]
[388781751,1759359487423,-501.36791258,0.00016973,2]
[388781752,1759359487449,-500.0,0.00016973,2]
[388781753,1759359487473,-500.0,0.00016973,2]
[388781754,1759359487500,-500.0,0.00016973,2]
[388781755,1759359487524,-500.0,0.00016973,2]
[388781756,1759359487549,-310.41398111,0.00016973,2]
[388781758,1759359531754,283.73,0.00016122,2]
[388781760,1759359600663,1000.0,0.00016438,2]
[388781762,1759359670224,559.36,0.00016035,2]
[388781763,1759359711035,150.0,0.00016027,2]
[388781764,1759359732488,150.0,6.8e-05,2]
[388781765,1759359732710,150.0,7.98e-05,2]
[388781766,1759359733086,150.0,9.17e-05,2]
[388781767,1759359733489,150.0,0.0001035,2]
[388781768,1759359733877,150.0,0.0001153,2]
[388781769,1759359734283,214.0,0.0001272,2]
[388781770,1759359734702,210.0,0.000139,2]
[388781771,1759359735038,205.0,0.0001509,2]
[388781772,1759359735464,200.0,0.0001627,2]
[388781773,1759359787510,666.0,0.00016023,3]
[388781775,1759359908440,150.0,0.00015288,2]
[388781776,1759359908493,150.0,0.00016137,2]
[388781777,1759359908654,25.41058871,0.00015288,2]
[388781778,1759359908681,124.58941129,0.00015288,2]
[388781779,1759359908909,150.0,0.00015288,2]
[388781780,1759359911630,150.0,0.00016137,2]
[388781781,1759359919233,800.0,0.00015965,2]
[388781782,1759359929861,150.0,0.00015288,2]
[388781791,1759360165978,152.45,7.933e-05,2]
[388781792,1759360166175,152.45,9.52e-05,2]
[388781793,1759360166588,152.45,0.00011106,2]
[388781794,1759360166807,152.45,0.00012693,2]
[388781795,1759360166997,152.45,0.00014279,2]
[388781796,1759360167207,152.45,0.00015866,2]
[388781797,1759360167453,977.0,0.00030137,120]
[388781806,1759360232018,-175.11173422,0.00016603,2]
[388781807,1759360232027,-168.0,0.000167,2]
[388781808,1759360232037,-195.0,0.00016701,2]
[388781809,1759360232046,-195.0,0.00016702,2]
[388781810,1759360232056,-2000.0,0.00016702,2]
[388781811,1759360232069,-300.0,0.00016703,2]
[388781812,1759360232078,-250.0,0.00016706,2]
[388781813,1759360232086,-300.0,0.00016711,2]
[388781814,1759360232096,-187.0,0.00016731,2]
[388781815,1759360232107,-250.0,0.00016742,2]
[388781816,1759360232116,-1425.0,0.00016778,2]
[388781817,1759360232126,-187.0,0.00016782,2]
[388781818,1759360232137,-175.11173421,0.00016787,2]
[388781819,1759360232147,-1200.0,0.00016799,2]
[388781820,1759360232159,-300.0,0.00016799,2]
[388781821,1759360232170,-6226.04371762,0.000168,2]
[388781822,1759360232180,-6226.04371762,0.00016811,2]
[388781823,1759360232189,-6226.04371762,0.00016822,2]
[388781824,1759360232198,-6226.04371762,0.00016833,2]
[388781825,1759360232208,-6226.04371762,0.00016844,2]
[388781826,1759360232223,-6226.04371762,0.00016856,2]
[388781827,1759360232233,-200.0,0.00016864,2]
[388781828,1759360232244,-6226.04371762,0.00016867,2]
[388781829,1759360232253,-6226.04371762,0.00016878,2]
[388781830,1759360232263,-304.65337897,0.00016887,2]
[388781831,1759360232273,-6226.04371762,0.00016889,2]
[388781832,1759360232282,-302.06152335,0.0001689,2]
[388781833,1759360232292,-257.91778498,0.0001689,2]
[388781834,1759360232301,-8882.6885148,0.0001689,2]
[388781835,1759360232309,-1200.0,0.00016896,2]
[388781836,1759360232318,-151.0,0.00016897,2]
[388781837,1759360232327,-151.0,0.00016897,2]
[388781838,1759360232337,-500.0,0.00016899,2]
[388781839,1759360232346,-500.0,0.00016899,2]
[388781840,1759360232355,-500.0,0.00016899,2]
[388781841,1759360232364,-500.0,0.00016899,2]
[388781842,1759360232374,-515.39700681,0.00016899,2]
[388781843,1759360232382,-500.0,0.00016899,2]
[388781844,1759360232391,-500.0,0.00016899,2]
[388781845,1759360232400,-500.0,0.00016899,2]
[388781846,1759360232409,-500.0,0.00016899,2]
[388781848,1759360232418,-331.04702599,0.00016899,2]
[388781850,1759360232427,-500.0,0.00016899,2]
[388781852,1759360232436,-500.0,0.00016899,2]
[388781854,1759360232446,-500.0,0.00016899,2]
[388781856,1759360232455,-500.0,0.00016899,2]
[388781858,1759360232464,-500.0,0.00016899,2]
[388781860,1759360232473,-1237.41,0.00016899,2]
[388781863,1759360232482,-167.053,0.00016899,2]
[388781865,1759360232491,-2119.4657,0.000169,2]
[388781868,1759360232500,-20688.7795,0.000169,2]
[388781870,1759360232509,-1000.0,0.000169,2]
[388781871,1759360232518,-85902.02029251,0.000169,2]
[388781872,1759360232529,-18309.39406087,0.000169,2]
[388781873,1759360232539,-22492.84059909,0.000169,2]
[388781874,1759360232550,-910.22854128,0.000169,2]
[388781875,1759360232561,-6066.0,0.000169,2]
[388781876,1759360232629,-16628.87270625,0.000169,2]
[388781877,1759360232638,-1000.0,0.000169,2]
[388781878,1759360232647,-2500.0,0.000169,2]
[388781879,1759360232657,-183.88553971,0.000169,2]
[388781880,1759360232666,-1034.78529052,0.000169,2]
[388781881,1759360232720,-1134.03150995,0.000169,2]
[388781882,1759360232759,-4057.22691715,0.000169,2]
[388781883,1759360232769,-152.71736326,0.000169,2]
[388781884,1759360232778,-220.82027288,0.000169,2]
[388781885,1759360232787,-283.73,0.00016928,2]
[388781886,1759360232796,-8630.36710233,0.00016945,2]
[388781887,1759360232808,-580.98088752,0.00016945,2]
[388781888,1759360232816,-151.0,0.0001697,2]
[388781889,1759360232826,-1000.0,0.0001697,2]
[388781890,1759360232835,-505.6283213,0.00016973,2]
[388781891,1759360232844,-531.70809816,0.00016973,2]
[388781892,1759360232853,-500.0,0.00016973,2]
[388781893,1759360232862,-500.0,0.00016973,2]
[388781894,1759360232871,-501.11394804,0.00016973,2]
[388781895,1759360232881,-500.0,0.00016973,2]
[388781896,1759360232890,-500.0,0.00016973,2]
[388781897,1759360232899,-18.85111504,0.00016973,2]
[388781898,1759360232910,-481.14888496,0.00016973,2]
[388781899,1759360232919,-500.0,0.00016973,2]
[388781900,1759360232928,-500.0,0.00016973,2]
[388781901,1759360232938,-500.0,0.00016973,2]
[388781902,1759360232947,-500.0,0.00016973,2]
[388781903,1759360232956,-503.25880873,0.00016973,2]
[388781904,1759360232965,-500.0,0.00016973,2]
[388781905,1759360232974,-291.42831495,0.00016973,2]
[388781906,1759360232986,-208.57168505,0.00016973,2]
[388781907,1759360232995,-500.0,0.00016973,2]
[388781908,1759360233004,-163.22997453,0.00016973,2]
[388781909,1759360233014,-500.0,0.00016973,2]
[388781910,1759360233023,-500.0,0.00016973,2]
[388781911,1759360233032,-59.52175667,0.00016973,2]
[388781912,1759360233045,-440.47824333,0.00016973,2]
[388781913,1759360233054,-500.0,0.00016973,2]
[388781914,1759360233065,-174.21002779,0.00016973,2]
[388781915,1759360233075,-500.24728439,0.00016973,2]
[388781916,1759360233084,-29.34029996,0.00016973,2]
[388781917,1759360233095,-470.65970004,0.00016973,2]
[388781918,1759360233105,-513.30096924,0.00016973,2]
[388781919,1759360233115,-500.67187423,0.00016973,2]
[388781920,1759360233124,-151.0,0.00016973,2]
[388781921,1759360233134,-2114.18,0.00016973,2]
[388781922,1759360233146,-150.0,0.00016986,2]
[388781923,1759360233155,-150.0,0.00016986,2]
[388781924,1759360233164,-150.0,0.00016986,2]
[388781925,1759360233173,-971.94391352,0.00016987,2]
[388781927,1759360237886,-2188.56659074,0.00016987,2]
[388781928,1759360237897,-23202.09126741,0.00016987,2]
[388781929,1759360237908,-378.28999464,0.00016987,2]
[388781930,1759360237967,-543.57890316,0.00016987,2]
[388781931,1759360237978,-1552.17388718,0.00016987,2]
[388781932,1759360237990,-883.61799732,0.00016987,2]
[388781933,1759360238002,-3585.97809003,0.00016987,2]
[388781934,1759360238012,-1664.6850187,0.00016987,2]
[388781935,1759360238022,-151.0,0.00016987,2]
[388781936,1759360238031,-151.0,0.00016987,2]
[388781937,1759360238041,-151.0,0.00016987,2]
[388781938,1759360238051,-151.0,0.00016987,2]
[388781940,1759360238063,-151.0,0.00016987,2]
[388781941,1759360238074,-151.0,0.00016987,2]
[388781942,1759360238083,-151.0,0.00016987,2]
[388781943,1759360238093,-151.0,0.00016987,2]
[388781944,1759360238103,-110.09117176,0.00016987,2]
[388781945,1759360238115,-40.90882824,0.00016987,2]
[388781946,1759360238125,-151.0,0.00016987,2]
[388781947,1759360238135,-151.0,0.00016987,2]
[388781948,1759360238145,-151.0,0.00016987,2]
[388781949,1759360238155,-151.0,0.00016987,2]
[388781950,1759360238164,-151.0,0.00016987,2]
[388781951,1759360238174,-151.0,0.00016987,2]
[388781952,1759360238184,-151.0,0.00016987,2]
[388781953,1759360238193,-151.0,0.00016987,2]
[388781954,1759360238207,-151.0,0.00016987,2]
[388781955,1759360238216,-151.0,0.00016987,2]
[388781956,1759360238226,-203.597152,0.00016987,2]
[388781957,1759360238236,-3469.5752656,0.00016987,2]
[388781959,1759360238246,-582.23,0.00016987,2]
[388781961,1759360238255,-296.1851084,0.00016988,2]
[388781962,1759360238264,-151.0,0.0001699,2]
[388781964,1759360238274,-151.13318322,0.0001699,2]
[388781966,1759360238284,-151.0,0.0001699,2]
[388781969,1759360238294,-151.0,0.0001699,2]
[388781971,1759360238304,-165.6218766,0.0001699,2]
[388781973,1759360238313,-153.31795381,0.0001699,2]
[388781975,1759360238322,-200.0,0.0001699,2]
[388781977,1759360238331,-200.0,0.0001699,2]
[388781979,1759360238341,-670.58624095,0.0001699,2]
[388781980,1759360238351,-302.0,0.0001699,2]
[388781983,1759360238361,-500.0,0.0001699,2]
[388781984,1759360238372,-500.0,0.0001699,2]
[388781986,1759360238381,-500.0,0.0001699,2]
[388781988,1759360238391,-500.0,0.0001699,2]
[388781991,1759360238402,-500.0,0.0001699,2]
[388781992,1759360238411,-500.0,0.0001699,2]
[388781994,1759360238420,-500.0,0.0001699,2]
[388781996,1759360238430,-500.0,0.0001699,2]
[388781998,1759360238439,-200.0,0.0001699,2]
[388782000,1759360238449,-500.0,0.0001699,2]
[388782002,1759360238458,-500.0,0.0001699,2]
[388782004,1759360238468,-200.0,0.0001699,2]
[388782006,1759360238478,-500.0,0.0001699,2]
[388782008,1759360238488,-500.0,0.0001699,2]
[388782010,1759360238498,-200.0,0.0001699,2]
[388782012,1759360238508,-322.6107,0.0001699,2]
[388782014,1759360238517,-500.0,0.0001699,2]
[388782017,1759360238528,-500.0,0.0001699,2]
[388782019,1759360238538,-200.0,0.0001699,2]
[388782021,1759360238548,-500.0,0.0001699,2]
[388782023,1759360238558,-200.0,0.0001699,2]
[388782025,1759360238567,-500.0,0.0001699,2]
[388782026,1759360238576,-228.00414408,0.0001699,2]
[388782029,1759360238586,-500.0,0.0001699,2]
[388782030,1759360238595,-500.0,0.0001699,2]
[388782032,1759360238604,-500.0,0.0001699,2]
[388782034,1759360238614,-500.0,0.0001699,2]
[388782036,1759360238623,-94.26950818,0.0001699,2]
[388782039,1759360238639,-405.73049182,0.0001699,2]
[388782041,1759360238649,-500.0,0.0001699,2]
[388782043,1759360238659,-500.0,0.0001699,2]
[388782045,1759360238668,-500.0,0.0001699,2]
[388782047,1759360238678,-99.87170598,0.0001699,2]
[388782049,1759360238690,-51.12829402,0.0001699,2]
[388782052,1759360238700,-150.0,0.0001699,2]
[388782054,1759360238710,-121.74051685,0.0001699,2]
[388782180,1759360239871,-378.25948315,0.0001699,2]
[388782182,1759360239881,-150.0,0.0001699,2]
[388782184,1759360239891,-500.0,0.0001699,2]
[388782187,1759360239900,-150.0,0.0001699,2]
[388782190,1759360239909,-150.0,0.0001699,2]
[388782192,1759360239918,-1269.0,0.0001699,2]
[388782194,1759360239928,-150.0,0.0001699,2]
[388782196,1759360239937,-150.0,0.0001699,2]
[388782198,1759360239947,-150.0,0.0001699,2]
[388782200,1759360239956,-150.0,0.0001699,2]
[388782202,1759360239965,-150.0,0.0001699,2]
[388782204,1759360239974,-500.0,0.0001699,2]
[388782206,1759360239983,-5509.874337,0.0001699,2]
[388782208,1759360239994,-500.0,0.0001699,2]
[388782210,1759360240003,-5509.874337,0.0001699,2]
[388782212,1759360240013,-870.0,0.0001699,2]
[388782214,1759360240021,-5509.874337,0.0001699,2]
[388782216,1759360240030,-151.0,0.0001699,2]
[388782218,1759360240039,-5509.874337,0.0001699,2]
[388782220,1759360240049,-500.0,0.0001699,2]
[388782222,1759360240058,-151.0,0.0001699,2]
[388782224,1759360240070,-3580.447605,0.0001699,2]
[388782226,1759360240079,-500.0,0.0001699,2]
[388782228,1759360240088,-198.432007,0.0001699,2]
[388782230,1759360240099,-279.715811,0.0001699,2]
[388782232,1759360240108,-3580.447605,0.0001699,2]
[388782234,1759360240117,-150.0,0.0001699,2]
[388782236,1759360240127,-198.432007,0.0001699,2]
[388782238,1759360240140,-151.0,0.0001699,2]
[388782240,1759360240149,-150.0,0.0001699,2]
[388782242,1759360240158,-3580.447605,0.0001699,2]
[388782244,1759360240168,-198.432007,0.0001699,2]
[388782246,1759360240177,-150.0,0.0001699,2]
[388782248,1759360240186,-3580.447605,0.0001699,2]
[388782250,1759360240195,-788.352187,0.0001699,2]
[388782252,1759360240205,-198.432007,0.0001699,2]
[388782254,1759360240214,-176.596851,0.0001699,2]
[388782256,1759360240223,-788.352187,0.0001699,2]
[388782258,1759360240232,-176.596851,0.0001699,2]
[388782260,1759360240241,-788.352187,0.0001699,2]
[388782262,1759360240251,-419.418692,0.0001699,2]
[388782264,1759360240260,-151.0,0.0001699,2]
[388782266,1759360240269,-176.596851,0.0001699,2]
[388782267,1759360240278,-788.352187,0.0001699,2]
[388782268,1759360240287,-419.418692,0.0001699,2]
[388782269,1759360240297,-176.596851,0.0001699,2]
[388782270,1759360240306,-419.418692,0.0001699,2]
[388782271,1759360240315,-500.0,0.0001699,2]
[388782272,1759360240325,-150.0,0.0001699,2]
[388782273,1759360240334,-419.418692,0.0001699,2]
[388782274,1759360240343,-484.270022,0.0001699,2]
[388782275,1759360240352,-150.0,0.0001699,2]
[388782276,1759360240362,-151.0,0.00016996,2]
[388782277,1759360240371,-151.0,0.00016996,2]
[388782278,1759360240380,-168.58534296,0.00016997,2]
[388782279,1759360240389,-257.7360088,0.00016997,2]
[388782281,1759360240398,-500.0,0.00016997,2]
[388782283,1759360240411,-385.30242405,0.00016997,2]
[388782285,1759360240420,-503.52430827,0.00016997,2]
[388782287,1759360240429,-151.0,0.00016997,2]
[388782289,1759360240439,-1037552.56283259,0.00016998,2]
[388782291,1759360240448,-150.0,0.00016998,2]
[388782293,1759360240458,-150.0,0.00016998,2]
[388782295,1759360240468,-500.0,0.00016998,2]
[388782297,1759360240477,-500.0,0.00016998,2]
[388782299,1759360240486,-5509.874337,0.00016998,2]
[388782301,1759360240496,-5509.874337,0.00016998,2]
[388782303,1759360240505,-5509.874337,0.00016998,2]
[388782305,1759360240515,-5509.874337,0.00016998,2]
[388782307,1759360240524,-151.0,0.00016998,2]
[388782309,1759360240533,-3580.447605,0.00016998,2]
[388782311,1759360240542,-198.432007,0.00016998,2]
[388782313,1759360240551,-3580.447605,0.00016998,2]
[388782315,1759360240561,-198.432007,0.00016998,2]
[388782317,1759360240570,-151.0,0.00016998,2]
[388782319,1759360240579,-3580.447605,0.00016998,2]
[388782321,1759360240588,-198.432007,0.00016998,2]
[388782323,1759360240597,-3580.447605,0.00016998,2]
[388782325,1759360240606,-788.352187,0.00016998,2]
[388782327,1759360240615,-198.432007,0.00016998,2]
[388782329,1759360240624,-176.596851,0.00016998,2]
[388782331,1759360240634,-788.352187,0.00016998,2]
[388782333,1759360240643,-176.596851,0.00016998,2]
[388782335,1759360240652,-788.352187,0.00016998,2]
[388782337,1759360240661,-419.418692,0.00016998,2]
[388782339,1759360240671,-151.0,0.00016998,2]
[388782341,1759360240681,-176.596851,0.00016998,2]
[388782343,1759360240690,-788.352187,0.00016998,2]
[388782345,1759360240699,-419.418692,0.00016998,2]
[388782347,1759360240709,-176.596851,0.00016998,2]
[388782349,1759360240718,-419.418692,0.00016998,2]
[388782351,1759360240727,-419.418692,0.00016998,2]
[388782353,1759360240736,-484.270022,0.00016998,2]
[388782355,1759360240745,-155.0,0.00016999,2]
[388782357,1759360240755,-2247.55407022,0.00016999,2]
[388782359,1759360240764,-1000.0,0.00016999,2]
[388782361,1759360240773,-719.1499998,0.00016999,2]
[388782363,1759360240782,-300.0,0.00016999,2]
[388782365,1759360240791,-10000.0,0.00016999,2]
[388782367,1759360240800,-153.489403,0.00016999,2]
[388782369,1759360240809,-429.72647,0.00016999,2]
[388782371,1759360240818,-429.72647,0.00016999,2]
[388782373,1759360240827,-429.72647,0.00016999,2]
[388782375,1759360240837,-151.0,0.00016999,2]
[388782377,1759360240846,-151.0,0.00016999,2]
[388782379,1759360240855,-429.72647,0.00016999,2]
[388782381,1759360240864,-151.0,0.00016999,2]
[388782383,1759360240873,-151.0,0.00016999,2]
[388782385,1759360240883,-1323.54788,0.00016999,2]
[388782387,1759360240892,-1323.54788,0.00016999,2]
[388782389,1759360240901,-1323.54788,0.00016999,2]
[388782391,1759360240911,-253.264484,0.00016999,2]
[388782393,1759360240920,-253.264484,0.00016999,2]
[388782395,1759360240929,-179.364646,0.00016999,2]
[388782397,1759360240939,-253.264484,0.00016999,2]
[388782399,1759360240947,-179.364646,0.00016999,2]
[388782401,1759360240956,-253.264484,0.00016999,2]
[388782403,1759360240965,-179.364646,0.00016999,2]
[388782405,1759360240975,-179.364646,0.00016999,2]
[388782407,1759360240984,-300.0,0.00016999,2]
[388782409,1759360240994,-1000.0,0.00016999,2]
[388782411,1759360241003,-151.0,0.00016999,2]
[388782413,1759360241013,-151.0,0.00016999,2]
[388782415,1759360241022,-151.0,0.00016999,2]
[388782417,1759360241031,-151.0,0.00016999,2]
[388782419,1759360241040,-151.0,0.00016999,2]